[Event "Prague Festival Open 2022"]
[Site "Prague"]
[Date "2022.06.11"]
[Round "3.6"]
[White "Santiago, Yago De Moura"]
[Black "Sokolovsky, Yahli"]
[Result "1/2-1/2"]
[ECO "D10"]
[WhiteElo "2498"]
[BlackElo "2369"]
[Annotator "TA"]
[PlyCount "98"]
[EventDate "2022.06.10"]
[EventType "swiss"]
[EventCountry "CZE"]
[SourceTitle "playchess.com"]
[Source "ChessBase"]
[SourceQuality "1"]
[TimeControl "40/5400+30:1800+30"]

{[%evp 9,98,7,17,0,0,0,0,0,0,0,0,-10,-9,-8,-14,-13,-10,-33,-16,-14,0,-11,-17,-21,-27,-25,-19,-24,0,0,0,-20,0,-39,-11,-6,-7,-13,-10,0,-12,-27,-31,-58,-45,-43,-28,-39,-43,-54,-78,-75,-79,-222,-220,-210,-210,-215,-16,-15,-15,-16,-17,-15,-16,-15,0,0,0,-10,-10,-42,-42,-37,-38,-42,-15,-31,-15,-35,-33,-24,-8,-8,-15,-29,0,0,0,-36,0]} 1. d4 {[%emt 0:02:49]} d5 {[%emt 0:00:06]} 2. c4 {[%emt 0:01:08]} c6 {[%emt 0:00:05]} 3. cxd5 {[%emt 0:00:07]} cxd5 {[%emt 0:00:03]} 4. Bg5 {[%emt 0:00:10]} h6 {[%emt 0:09:30]} 5. Bh4 {[%emt 0:00:48]} Qb6 {[%emt 0:00:55]} 6. Qd2 {[%emt 0:07:12] D10: Slav Defence: 3 cxd5 (without early Nf3) and 3 Nc3.} (6. Nc3 $5 {[%cal Rc3d5]}) 6... e5 {[%emt 0:09:56] White must now prevent ...Bb4.} 7. Nc3 {[%emt 0:13:37]} Be6 {[%emt 0:02:36]} 8. e3 {[%emt 0:03:33] The position is equal.} ({But not} 8. dxe5 g5 9. O-O-O gxh4 $19) 8... exd4 {[%emt 0:01:36] [#]} 9. exd4 $146 {[%emt 0:05:18]} ({Predecessor:} 9. Bb5+ Nc6 10. Qxd4 Qxd4 11. exd4 Rc8 12. Nge2 a6 13. Bxc6+ Rxc6 14. Kd2 Ne7 15. f3 {½-½ (40) Taimanov,M (2470)-Lugovoi,A (2500) St Petersburg 1996}) 9... Nc6 {[%emt 0:10:39]} 10. Bb5 {[%emt 0:05:16]} Nge7 {[%emt 0:03:46]} 11. Bxe7 {[%emt 0:15:47]} Bxe7 {[%emt 0:00:09]} 12. Nf3 {[%emt 0:00:07]} O-O {[%emt 0:01:16]} 13. Bxc6 {[%emt 0:00:25]} Qxc6 {[%emt 0:02:57]} 14. O-O {[%emt 0:00:43]} b5 {[%emt 0:15:09]} 15. Rac1 {[%emt 0:11:56][%cal Oc3e4]} Qb7 {[%emt 0:02:05]} 16. Ne2 {[%emt 0:06:52]} Rac8 {[%emt 0:04:11]} 17. Nf4 {[%emt 0:01:40]} Bf5 {[%emt 0:00:41]} 18. Nd3 {[%emt 0:04:11]} Bd6 {[%emt 0:07:46]} 19. Nc5 {[%emt 0:04:03]} Qb8 {[%emt 0:02:02] aiming for ...Bf4.} 20. g3 {[%emt 0:00:08] Inhibits Bf4.} Rfe8 {[%emt 0:02:03]} 21. Rfe1 {[%emt 0:09:14]} Bg4 {[%emt 0:09:23]} 22. Qd3 {[%emt 0:00:50]} b4 {[%emt 0:06:29]} 23. Qb3 {[%emt 0:01:23]} Qa8 {[%emt 0:03:17]} 24. Rxe8+ {[%emt 0:02:44]} Rxe8 {[%emt 0:00:01]} 25. Kg2 {[%emt 0:00:07]} a5 {[%emt 0:02:58]} 26. Qd3 {[%emt 0:02:33]} Qc8 {[%emt 0:00:27]} 27. Ng1 {[%emt 0:00:34]} h5 {[%emt 0:02:06][%cal Bh6h5,Bh5h4][%mdl 32]} 28. Qb5 {[%emt 0:00:33]} h4 {[%emt 0:01:42]} 29. h3 {[%emt 0:00:41]} Bf5 {[%emt 0:00:20]} 30. g4 {[%emt 0:00:29] [#]} Bxg4 {[%emt 0:00:41] A strong pair of Bishops.} ({Don't play} 30... Bf4 31. Ra1 Bxg4 32. hxg4 Qxg4+ 33. Kf1 $11) 31. Ne4 {[%emt 0:00:23]} Bxh3+ $19 {[%emt 0:00:23]} ({Weaker is} 31... Qxc1 32. Qxe8+ Bf8 33. Nc5) 32. Nxh3 {[%emt 0:00:01]} Qg4+ {[%emt 0:00:24]} 33. Ng3 {[%emt 0:00:01]} Rf8 {[%emt 0:00:46]} ({Better is} 33... Kf8 $19 34. Qxd5 Bxg3) 34. Qe2 $11 {[%emt 0:01:33]} Qg6 {[%emt 0:00:15][%mdl 64] [#] Pin} 35. Qh5 {[%emt 0:00:32]} hxg3 {[%emt 0:00:37]} 36. Qxg6 {[%emt 0:00:02]} fxg6 {[%emt 0:00:05]} 37. fxg3 {[%emt 0:00:23][%mdl 4096] Endgame KRB-KRN} Re8 {[%emt 0:00:42] Strongly threatening ...Re2+.} 38. Kf3 {[%emt 0:00:07] Against Re2} Be7 {[%emt 0:00:49]} 39. Nf4 {[%emt 0:01:17]} Bf6 {[%emt 0:00:24]} 40. Nxd5 {[%emt 0:00:42]} Bxd4 {[%emt 0:00:26]} 41. b3 {[%emt 0:07:37]} Re5 {[%emt 0:03:55]} 42. Rc8+ {[%emt 0:01:56]} Kh7 {[%emt 0:01:23]} (42... Kf7 $5 {[%cal Re5d5]} 43. Nf4 g5 $17) 43. Rd8 {[%emt 0:00:39]} Rf5+ {[%emt 0:04:51]} 44. Ke4 {[%emt 0:11:33]} Bf6 {[%emt 0:02:05]} 45. Ra8 {[%emt 0:00:12]} Re5+ {[%emt 0:09:11]} 46. Kd4 {[%emt 0:00:06]} Rg5+ {[%emt 0:00:53]} 47. Ke4 {[%emt 0:02:37]} Re5+ {[%emt 0:03:51]} 48. Kd4 {[%emt 0:00:02]} Rg5+ {[%emt 0:03:23]} 49. Ke4 {[%emt 0:00:09]} Re5+ {[%emt 0:01:57] Weighted Error Value: White=0.11 (very precise) /Black=0.15 (very precise)} 1/2-1/2

[Event "Prague Festival Open 2022"]
[Site "Prague"]
[Date "2022.06.11"]
[Round "3.7"]
[White "Costa, Leonardo"]
[Black "Sankalp Gupta"]
[Result "1/2-1/2"]
[ECO "B12"]
[WhiteElo "2322"]
[BlackElo "2505"]
[Annotator "TA"]
[PlyCount "72"]
[EventDate "2022.06.10"]
[EventType "swiss"]
[EventCountry "CZE"]
[SourceTitle "playchess.com"]
[Source "ChessBase"]
[SourceQuality "1"]
[TimeControl "40/5400+30:1800+30"]

{[%evp 9,72,10,20,15,20,10,14,25,7,10,14,4,20,13,14,5,13,16,9,6,13,3,13,0,0,2,14,0,14,6,41,27,43,0,11,13,17,-7,26,0,8,0,0,0,6,4,23,25,117,105,116,122,108,98,102,104,97,69,63,60,81,0,0,-27,-12]} 1. e4 {[%emt 0:00:22]} c6 {[%emt 0:06:15]} 2. d4 {[%emt 0:00:09]} d5 {[%emt 0:00:06]} 3. e5 {[%emt 0:00:05]} Bf5 {[%emt 0:00:06]} 4. Nd2 {[%emt 0:00:11]} e6 {[%emt 0:00:08]} 5. Nb3 {[%emt 0:00:04]} a6 {[%emt 0:00:12][%cal Oc6c5]} 6. Nf3 {[%emt 0:00:12] B12: Caro-Kann: Advance Variation.} c5 {[%emt 0:00:12]} 7. dxc5 {[%emt 0:00:21]} Bxc5 {[%emt 0:00:08]} 8. Nxc5 {[%emt 0:00:03] The position is equal.} Qa5+ {[%emt 0:00:07]} 9. c3 {[%emt 0:00:03]} Qxc5 {[%emt 0:00:05]} 10. Nd4 {[%emt 0:00:09] Black must now prevent Be3.} Ne7 {[%emt 0:00:07]} 11. Be3 {[%emt 0:02:35]} Qc7 {[%emt 0:00:10]} 12. f4 {[%emt 0:01:26]} Nbc6 {[%emt 0:00:02]} 13. Be2 {[%emt 0:03:28]} Nxd4 {[%emt 0:00:36]} 14. Bxd4 {[%emt 0:07:31]} Be4 {[%emt 0:00:08]} 15. O-O {[%emt 0:00:30] [#]} O-O $146 {[%emt 0:02:07]} ({Predecessor:} 15... Nf5 16. Bf2 g6 17. Bf3 Bxf3 18. Qxf3 h5 19. Rad1 Qc4 20. b3 Qc6 21. c4 dxc4 22. Qxc6+ bxc6 23. bxc4 {½-½ (107) Gokerkan,C (2461)-Hansch,K (2300) Chess.com INT 2020}) 16. Rc1 {[%emt 0:17:12]} Nf5 {[%emt 0:02:52]} 17. Qd2 {[%emt 0:08:27]} Qa5 {[%emt 0:04:05]} 18. a3 {[%emt 0:03:15]} Rfc8 {[%emt 0:02:31]} 19. Bf2 {[%emt 0:04:43]} Rc6 {[%emt 0:00:57]} 20. g4 {[%emt 0:07:33]} Ne7 {[%emt 0:01:45]} 21. Qd4 {[%emt 0:00:47]} b5 {[%emt 0:10:34]} 22. Be3 {[%emt 0:02:47]} Rcc8 {[%emt 0:03:02]} 23. Qb6 {[%emt 0:03:59]} Qa4 {[%emt 0:03:13]} 24. Qd4 {[%emt 0:00:31]} Nc6 {[%emt 0:09:07]} 25. Qxa4 {[%emt 0:08:13]} bxa4 {[%emt 0:00:02]} 26. Rf2 {[%emt 0:05:11]} Rcb8 {[%emt 0:05:07]} 27. Bf1 {[%emt 0:00:57]} Rb7 {[%emt 0:02:15]} 28. Rd1 {[%emt 0:01:03][%cal Bc1d1,Bd1d4,Bd4a4][%mdl 32]} Na5 {[%emt 0:01:27]} (28... h6 $11) 29. Rd4 $16 {[%emt 0:01:27]} Nb3 {[%emt 0:02:58]} 30. Rxa4 {[%emt 0:07:54]} a5 {[%emt 0:00:31]} 31. Bg2 {[%emt 0:02:06]} f5 {[%emt 0:04:02]} 32. exf6 {[%emt 0:00:35]} Bxg2 {[%emt 0:00:04]} 33. f7+ {[%emt 0:04:40]} Kxf7 {[%emt 0:00:28] Hoping for ...Be4.} 34. Kxg2 {[%emt 0:00:02]} Ke7 {[%emt 0:00:35] [#]} 35. Bd4 {[%emt 0:02:55]} ({Better is} 35. f5 $1 $16) 35... Kd6 $11 {[%emt 0:00:51]} 36. Be5+ {[%emt 0:02:13]} Kc6 {[%emt 0:03:48] Weighted Error Value: White=0.11 (very precise) /Black=0.13 (very precise)} 1/2-1/2

[Event "Prague Festival Open 2022"]
[Site "Prague"]
[Date "2022.06.11"]
[Round "3.8"]
[White "Stremavicius, Titas"]
[Black "Wagh Suyog"]
[Result "1-0"]
[ECO "A31"]
[WhiteElo "2508"]
[BlackElo "2352"]
[Annotator "TA"]
[PlyCount "109"]
[EventDate "2022.06.10"]
[EventType "swiss"]
[EventCountry "CZE"]
[SourceTitle "playchess.com"]
[Source "ChessBase"]
[SourceQuality "1"]
[TimeControl "40/5400+30:1800+30"]

{[%evp 14,109,50,50,46,39,48,47,59,54,100,68,79,54,55,38,75,72,97,103,152,147,137,136,137,131,140,137,238,154,156,91,104,105,122,66,120,46,108,115,176,172,169,170,164,35,29,42,27,25,95,89,97,47,28,29,50,61,114,0,0,0,0,0,274,183,524,470,425,231,627,606,635,206,414,382,300,0,497,482,944,901,994,972,922,777,1082,1110,1094,969,1104,1093,29986,29987,29990,29991,29991,29992]} 1. c4 {[%emt 0:00:03]} Nf6 {[%emt 0:07:58]} 2. Nc3 {[%emt 0:00:16]} c5 {[%emt 0:02:59]} 3. Nf3 {[%emt 0:00:09]} b6 {[%emt 0:01:06]} 4. e4 {[%emt 0:00:56]} d6 {[%emt 0:01:00]} 5. d4 {[%emt 0:00:10]} cxd4 {[%emt 0:00:12]} 6. Nxd4 {[%emt 0:00:10]} Bb7 {[%emt 0:00:24]} 7. f3 {[%emt 0:00:54]} e6 {[%emt 0:00:16]} 8. Be2 {[%emt 0:01:19]} a6 {[%emt 0:01:46] A31: Symmetrical English: 2 Nf3 Nf6 3 d4.} 9. Be3 {[%emt 0:00:32]} Be7 {[%emt 0:00:53]} 10. Qd2 {[%emt 0:00:19]} Nbd7 {[%emt 0:05:01] White is slightly better.} 11. g4 {[%emt 0:04:19][%cal Bg2g4,Bg4g5][%mdl 32]} O-O {[%emt 0:33:08]} (11... h6 $14) 12. g5 {[%emt 0:03:15]} Ne8 {[%emt 0:00:03]} 13. O-O {[%emt 0:23:42]} Nc7 {[%emt 0:11:36]} 14. f4 {[%emt 0:01:08] [#]} g6 $146 {[%emt 0:03:47]} ({Predecessor:} 14... Re8 15. Rf2 Bf8 16. Nc2 Rb8 17. Raf1 Nc5 18. Bf3 Qe7 19. h4 Red8 20. b4 Nd7 {1-0 (34) Shtereva,S (2100)-Yildiz Kadioglu,B (2061) Patras 2001}) 15. Nb3 {[%emt 0:06:23]} Re8 {[%emt 0:03:55]} 16. Rad1 {[%emt 0:03:20]} Nc5 {[%emt 0:01:27]} (16... a5 $142) 17. Nxc5 {[%emt 0:00:57]} bxc5 {[%emt 0:00:44]} 18. Bf3 {[%emt 0:07:55]} Qb8 {[%emt 0:02:14]} 19. h4 {[%emt 0:01:40][%cal Bh2h4,Bh4h5][%mdl 32]} Bc6 {[%emt 0:02:17]} 20. h5 {[%emt 0:10:30]} Qb4 {[%emt 0:03:02]} (20... Qb7 $16 21. Qg2 Rad8) 21. b3 {[%emt 0:00:17]} Rad8 {[%emt 0:00:39]} 22. Rfe1 {[%emt 0:12:17]} (22. f5 $142) 22... Bf8 $16 {[%emt 0:03:14]} 23. h6 {[%emt 0:00:09] Inhibits Bg7.} Qb7 {[%emt 0:02:20]} 24. Bf2 {[%emt 0:04:35]} (24. Rf1 $16) 24... Qa8 {[%emt 0:01:18]} (24... a5 $14) 25. Re3 {[%emt 0:00:19]} ({White should try} 25. Bg2 $1 $16) 25... Be7 {[%emt 0:07:05]} (25... e5 $14) 26. Rd3 {[%emt 0:00:42]} Qc8 {[%emt 0:01:03]} (26... a5 $16 27. Bg2 Na6) 27. Bg4 $18 {[%emt 0:04:47]} Qa8 {[%emt 0:00:30]} 28. Qb2 {[%emt 0:01:31]} Bf8 {[%emt 0:02:45] [#]} 29. Bf3 {[%emt 0:05:43]} (29. Rxd6 $1 $18 {[%mdl 512]} f5 30. Rxd8 Rxd8 31. Rxd8 Qxd8 32. Be2) 29... e5 $1 $14 {[%emt 0:00:22]} 30. Be3 {[%emt 0:03:14]} Ne6 {[%emt 0:01:12]} 31. fxe5 {[%emt 0:00:16] Strongly threatening Nd5.} dxe5 {[%emt 0:00:07]} (31... Nd4 $1 $11 32. Bg2 (32. Bxd4 cxd4 33. Rxd4 Rxe5 $15) 32... dxe5) 32. Nd5 $16 {[%emt 0:00:45]} Bxd5 {[%emt 0:00:20]} 33. exd5 {[%emt 0:02:04]} (33. cxd5 $16 Nd4 34. Bg4) 33... Nd4 $14 {[%emt 0:00:27]} 34. Bg4 {[%emt 0:00:04]} (34. Bxd4 exd4 35. Qd2 Qb8 $17) 34... Qb8 {[%emt 0:00:31]} 35. Qf2 {[%emt 0:00:25]} (35. Bxd4 exd4 36. Rf1 Re4 $17) 35... e4 {[%emt 0:01:29] [#]} ({Better is} 35... Be7 $14) 36. Rxd4 {[%emt 0:02:06]} ({White should play} 36. R3d2 $1 $16) 36... cxd4 $11 {[%emt 0:00:15]} 37. Bxd4 {[%emt 0:00:05] Threatens to win with Qf6.} e3 $1 {[%emt 0:00:58]} 38. Bxe3 {[%emt 0:01:37] aiming for Bf4. Really sharp! A strong pair of Bishops.} Qc7 {[%emt 0:00:35][%mdl 8192]} (38... Re4 $1 $11 39. Bh3 Rde8) 39. Kg2 $40 {[%emt 0:00:08][%mdl 128] Black is in trouble.} Qe5 $2 {[%emt 0:00:15]} (39... Re4 {is more resistant.} 40. Bf3 Ree8) 40. Bf4 $18 {[%emt 0:00:41]} Qe4+ {[%emt 0:00:38]} 41. Qf3 {[%emt 0:30:07]} (41. Kg3 $142) 41... Qc2+ $2 {[%emt 0:04:44]} (41... Re5 42. Bxe5 Qxe5) 42. Rd2 {[%emt 0:00:00]} Qb1 {[%emt 0:02:25]} 43. Qd3 $2 {[%emt 0:00:00]} (43. d6) 43... Qc1 $2 {[%emt 0:06:53]} (43... Qxd3 44. Rxd3 Bc5) 44. d6 {[%emt 0:00:00]} Re1 {[%emt 0:01:13] [#]} 45. Bf3 $2 {[%emt 0:00:00]} (45. Qd4 $1 $18) 45... Rg1+ $2 {[%emt 0:04:54][%mdl 8192]} (45... Rh1 $1 $11 {and Black stays safe.} 46. Kg3 (46. Bd1 $2 Rxd1 47. Rxd1 Qxf4 $19) 46... Qe1+ 47. Rf2 Qg1+ 48. Rg2 Qe1+ 49. Rf2 Qg1+ 50. Rg2 Qe1+ 51. Rf2) 46. Kh2 {[%emt 0:00:00]} Re1 {[%emt 0:06:38] Inhibits Qe3.} (46... Rf1 $142 47. Qe4 Qa1) 47. Qd4 {[%emt 0:00:00]} Rf1 {[%emt 0:02:54]} 48. Kg2 {[%emt 0:00:00]} Rh1 {[%emt 0:00:39]} 49. Qf2 {[%emt 0:00:00] Active counter play!} Re8 {[%emt 0:02:39]} 50. d7 {[%emt 0:00:00]} Rd8 {[%emt 0:01:17]} 51. Rd4 {[%emt 0:00:00]} Qb1 {[%emt 0:01:19]} 52. Bc7 {[%emt 0:03:09]} Bc5 {[%emt 0:00:30]} 53. Bxd8 {[%emt 0:01:29] White mates.} Bxd4 {[%emt 0:00:01]} 54. Bc7 {[%emt 0:01:35][%cal Rd7d8]} ({And not} 54. Qxd4 Qf1+ 55. Kg3 Rh3+ 56. Kf4 Rh4+ 57. Ke5 Rxd4 58. Kxd4 Qxf3 $11) 54... Rg1+ {[%emt 0:00:46]} 55. Kh2 {[%emt 0:00:01] Weighted Error Value: White=0.47/Black=0.84} 1-0

[Event "Prague Festival Open 2022"]
[Site "Prague"]
[Date "2022.06.11"]
[Round "3.9"]
[White "Kulhanek, Tomas"]
[Black "Garriga Cazorla, Pere"]
[Result "0-1"]
[ECO "B22"]
[WhiteElo "2324"]
[BlackElo "2495"]
[Annotator "TA"]
[PlyCount "104"]
[EventDate "2022.06.10"]
[EventType "swiss"]
[EventCountry "CZE"]
[SourceTitle "playchess.com"]
[Source "ChessBase"]
[SourceQuality "1"]
[TimeControl "40/5400+30:1800+30"]

{[%evp 9,104,6,8,-4,33,6,11,3,17,0,0,1,0,-6,0,-1,0,0,-1,-6,-11,-11,-9,-14,-7,-4,-1,-8,0,0,0,0,0,0,0,-5,0,-13,-8,-8,-3,-2,0,0,0,0,0,-7,0,0,0,0,0,0,0,0,0,0,8,0,0,0,0,-63,-78,-81,-19,-13,-28,-152,-144,-997,-333,-333,-332,-316,-275,-1672,-1471,-1326,-1169,-1668,-1556,-3893,-2813,-2522,-2465,-5106,-5105,-4562,-2795,-5113,-5106,-5120,-5102,-5065,-4614]} 1. e4 {[%emt 0:11:22]} c5 {[%emt 0:00:15]} 2. c3 {[%emt 0:01:00]} d5 {[%emt 0:00:14]} 3. exd5 {[%emt 0:00:07]} Nf6 {[%emt 0:00:04]} 4. d4 {[%emt 0:03:17]} cxd4 {[%emt 0:01:49]} 5. Qxd4 {[%emt 0:00:27]} Nxd5 {[%emt 0:01:25]} 6. Nf3 {[%emt 0:00:50] B22: Sicilian: 2 c3.} e6 {[%emt 0:04:02]} (6... Nc6 $5 {[%cal Rc6d4]} 7. Bb5 e6 $11) 7. Bb5+ {[%emt 0:02:14]} Nc6 {[%emt 0:00:02]} 8. O-O {[%emt 0:00:22] The position is equal.} Bd7 {[%emt 0:06:00]} 9. Bxc6 {[%emt 0:01:27]} Bxc6 {[%emt 0:00:08]} 10. Ne5 {[%emt 0:00:48]} Qc7 {[%emt 0:01:25]} 11. Nxc6 {[%emt 0:02:51]} Qxc6 {[%emt 0:00:30]} 12. Nd2 {[%emt 0:01:52] [#]} Ne7 $146 {[%emt 0:03:36]} (12... Nf6 {is more complex.} 13. Nf3 Be7 14. Ne5 Qe4) ({Predecessor:} 12... Bc5 13. Qe4 O-O 14. Nb3 Bb6 15. c4 Ne7 16. Qxc6 Nxc6 17. Bd2 Rac8 18. Bc3 Rfd8 {0-1 (59) Okhotnik,V-Plachetka,J (2440) Balatonbereny 1985}) 13. Qe4 {[%emt 0:03:46]} Rd8 {[%emt 0:04:39]} 14. Qxc6+ {[%emt 0:03:00]} Nxc6 {[%emt 0:00:06]} 15. Nf3 {[%emt 0:00:04]} f6 {[%emt 0:05:57]} 16. Be3 {[%emt 0:00:43]} Bd6 {[%emt 0:01:00]} 17. Nd4 {[%emt 0:01:21]} Nxd4 {[%emt 0:00:55]} 18. Bxd4 {[%emt 0:00:06]} Bb8 {[%emt 0:00:03]} 19. Rfd1 {[%emt 0:01:13]} Kf7 {[%emt 0:00:31]} 20. Be3 {[%emt 0:00:54]} e5 {[%emt 0:01:14]} 21. f3 {[%emt 0:01:18]} Ke6 {[%emt 0:00:28]} 22. Kf2 {[%emt 0:00:58]} f5 {[%emt 0:00:39][%cal Bf6f5,Bf5f4][%mdl 32]} 23. g3 {[%emt 0:07:07]} Rhg8 {[%emt 0:02:51]} 24. Ke2 {[%emt 0:01:41]} Rxd1 {[%emt 0:04:21]} 25. Rxd1 $11 {[%emt 0:00:06][%mdl 4096] Endgame KRB-KRB} g5 {[%emt 0:00:10]} 26. g4 {[%emt 0:04:04]} f4 {[%emt 0:15:46]} 27. Bf2 {[%emt 0:00:55]} h5 {[%emt 0:00:09]} 28. h3 {[%emt 0:00:06]} Rh8 {[%emt 0:02:03]} 29. c4 {[%emt 0:10:58]} Bc7 {[%emt 0:14:42]} 30. b4 {[%emt 0:04:35]} Bd6 {[%emt 0:04:16]} 31. c5 {[%emt 0:02:53]} Be7 {[%emt 0:00:01]} 32. a4 {[%emt 0:08:44]} hxg4 {[%emt 0:03:06]} 33. hxg4 {[%emt 0:01:07]} Rh2 {[%emt 0:00:19][%cal Oa7a5]} 34. Kf1 {[%emt 0:01:02]} Rh3 {[%emt 0:01:03]} 35. Kg2 {[%emt 0:01:05]} Rh8 {[%emt 0:00:32]} 36. c6 {[%emt 0:07:17]} (36. Rc1 $11) 36... bxc6 $15 {[%emt 0:00:59]} 37. Rc1 {[%emt 0:00:24]} Bxb4 {[%emt 0:04:17]} (37... Kd5 $17 38. Rb1 Rc8 39. Rd1+ Ke6) 38. Rxc6+ $11 {[%emt 0:00:26]} Kd5 {[%emt 0:00:06]} 39. Ra6 {[%emt 0:02:15] [#]} (39. Rg6 $11) 39... Rc8 $1 $17 {[%emt 0:00:45] aiming for ...Rc2.} 40. Bxa7 $2 {[%emt 0:07:37][%mdl 8192] White does not recover from this.} (40. Rg6 $17) 40... Rc2+ $2 {[%emt 0:01:54]} (40... Ra8 {And now ...Bc5 would win.} 41. Kf1 Bc5 42. Bxc5 Rxa6) 41. Kf1 $19 {[%emt 0:30:33]} e4 {[%emt 0:34:00][%cal Be5e4,Be4e3][%mdl 32]} 42. Rb6 {[%emt 0:02:35]} Bc5 {[%emt 0:02:27]} 43. Rb7 $2 {[%emt 0:00:21]} (43. Rb5 e3 44. Bb6 (44. Bxc5 $2 Rxc5 45. Rb8 Kc4 $19)) 43... Kc6 {[%emt 0:04:43] Black is clearly winning.} 44. Rg7 {[%emt 0:02:47]} Bxa7 {[%emt 0:00:58]} 45. Rxa7 {[%emt 0:00:08] KR-KR} e3 {[%emt 0:00:03] [#] Strongly threatening ...Rf2+.} 46. Rg7 {[%emt 0:04:06]} Rf2+ {[%emt 0:00:19]} 47. Ke1 {[%emt 0:00:09]} Rxf3 {[%emt 0:00:06]} 48. Rxg5 {[%emt 0:00:12]} Rg3 {[%emt 0:00:19] ( -> ...f3)} ({Not} 48... Rf2 49. Rf5 $11) 49. Re5 {[%emt 0:00:00]} Kd6 {[%emt 0:00:00]} 50. Re4 {[%emt 0:00:00]} Rxg4 {[%emt 0:00:00] White must now prevent ...Kd5.} 51. a5 {[%emt 0:00:00]} Kd5 {[%emt 0:00:00]} 52. Re8 {[%emt 0:00:00]} Rg2 {[%emt 0:00:00] Weighted Error Value: White=0.59/Black=0.11 (very precise)} 0-1